bitfinex-derivatives/quotes_ETHF0:USTF0_20260123
["timestamp","ask_amount","ask_price","bid_price","bid_amount"]
[1769178052445,0.14454851,2935.4,2934.4,0.00510742]
[1769178052647,0.35126144,2935.3,2934.4,0.00510742]
[1769178052951,0.35126144,2935.2,2934.4,0.00510742]
[1769178053146,0.14454851,2935.4,2934.4,0.00510742]
[1769178053347,1.28958261,2935.3,2934.4,0.00510742]
[1769178053548,0.3512926,2935.2,2934.4,0.00510742]
[1769178053748,0.14454851,2935.4,2934.4,0.00510742]
[1769178054055,1.28959899,2935.3,2934.4,0.00510742]
[1769178054252,0.35129257,2935.2,2934.4,0.00510742]
[1769178054446,0.14454851,2935.4,2934.4,0.00510742]
[1769178054654,1.28972391,2935.3,2934.4,0.00510742]
[1769178054845,0.35132737,2935.2,2934.4,0.00510742]
[1769178055042,0.14454851,2935.4,2934.4,0.00510742]
[1769178055241,1.28976441,2935.3,2934.4,0.00510742]
[1769178055451,0.35136792,2935.2,2934.4,0.00510742]
[1769178055642,0.14454851,2935.4,2934.4,0.00510742]
[1769178055848,0.35134658,2935.3,2934.4,0.00510742]
[1769178056056,0.35134658,2935.2,2934.4,0.00510742]
[1769178056358,0.00424635,2935.4,2934.4,0.00510742]
[1769178056647,0.35135935,2935.3,2934.4,0.00510742]
[1769178056848,0.00424635,2935.4,2934.4,0.00510742]
[1769178058551,0.00424635,2935.4,2934.4,0.14710187]
[1769178062858,6.64565228,2936.2,2934.5,0.31931824]
[1769178063063,1.28733141,2936.1,2934.6,1.22898365]
[1769178063256,1.28733141,2936.0,2934.7,0.31930824]
[1769178063457,0.14765228,2936.2,2934.7,0.31930824]
[1769178063764,1.2853885,2936.1,2934.7,0.31930824]
[1769178063956,0.34959808,2936.0,2934.7,0.31930824]
[1769178064265,0.00241751,2936.1,2934.7,0.31930824]
[1769178064763,0.00241751,2936.1,2934.9,0.17059]
[1769178065864,0.00241751,2936.1,2934.9,0.31727694]
[1769178066056,0.00241751,2936.1,2935.0,0.14668694]
[1769178067560,0.00241751,2936.1,2934.9,0.17059]
[1769178068963,0.14891748,2936.1,2934.9,0.17059]
[1769178073466,0.14891748,2936.1,2934.9,5.44959]
[1769178073467,0.00241751,2936.1,2934.9,5.44959]
[1769178073673,0.00241751,2936.1,2934.9,5.59627694]
[1769178073879,0.00241751,2936.1,2935.0,1.22693235]
[1769178074168,0.14649997,2936.5,2935.2,0.17057]
[1769178075069,0.00254362,2936.5,2935.4,0.90966541]
[1769178075873,0.00254362,2936.5,2935.4,1.08022541]
[1769178076564,0.00254362,2936.5,2935.5,0.17055]
[1769178077068,0.00254362,2936.5,2935.5,0.31723694]
[1769178077270,0.14649997,2936.9,2935.5,0.31723694]
[1769178077662,0.14649997,2936.9,2935.5,0.17055]
[1769178078060,0.14649997,2936.9,2935.9,0.00510742]
[1769178085782,0.14649997,2936.6,2935.2,0.17057]
[1769178090886,0.14649997,2936.6,2935.3,0.17056]
[1769178091089,0.00510742,2936.7,2935.3,0.31724694]
[1769178091782,0.00510742,2936.7,2935.5,0.17055]
[1769178093080,0.00510742,2936.7,2935.5,0.14098393]
[1769178093276,0.00510742,2936.7,2935.7,0.17054]
[1769178093480,0.00510742,2936.7,2935.5,0.14098393]
[1769178093481,0.00510742,2936.7,2935.5,3.20780511]
[1769178093679,0.00510742,2936.7,2935.6,0.14098393]
[1769178094174,0.00510742,2936.7,2935.8,0.17054]
[1769178096585,0.00510742,2936.7,2935.6,0.14098393]
[1769178096792,0.00510742,2936.7,2935.5,3.06682118]
[1769178102492,0.00510742,2936.7,2935.6,3.06682118]
[1769178105994,0.00510742,2936.7,2935.7,0.17054]
[1769178107390,0.00510742,2936.7,2935.7,0.31152393]
[1769178107888,0.00510742,2936.7,2935.7,3.37834511]
[1769178109499,0.00510742,2936.7,2935.7,3.23736118]
[1769178112797,0.00510742,2936.7,2935.7,3.06682118]
[1769178112997,0.00510742,2936.7,2935.5,3.06682118]
[1769178113495,0.15360691,2936.7,2935.5,3.06682118]
[1769178113696,0.15360691,2936.7,2935.5,8.37182118]
[1769178117702,0.00510742,2936.7,2935.7,0.90894459]
[1769178119303,0.00510742,2936.7,2935.7,1.04992852]
[1769178119505,0.00510742,2936.7,2935.7,4.1167497]
[1769178122204,0.00510742,2936.7,2935.7,3.06682118]
[1769178123007,0.00510742,2936.7,2935.6,0.17055]
[1769178123008,0.14285577,2936.6,2935.6,3.06682118]
[1769178124405,0.00510742,2936.7,2935.6,3.06682118]
[1769178125706,0.14796319,2936.7,2935.5,3.06682118]
[1769178126614,1.05690778,2936.7,2935.5,3.06682118]
[1769178126811,0.34610069,2936.6,2935.5,3.06682118]
[1769178127113,1.05690778,2936.7,2935.5,3.06682118]
[1769178131716,1.0507842,2935.8,2935.2,9.59530656]
[1769178131916,1.0507842,2935.8,2935.1,3.409]
[1769178132821,0.14183961,2935.8,2935.1,3.409]
[1769178138223,0.14183961,2936.5,2935.4,0.90894459]
[1769178138424,0.14183961,2936.5,2935.1,4.31794459]
[1769178139026,0.00510742,2936.7,2935.4,0.90894459]
[1769178139321,0.34492311,2936.6,2935.4,0.90894459]
[1769178139526,0.00510742,2936.7,2935.4,0.90894459]
[1769178139723,0.34493597,2936.6,2935.4,0.90894459]
[1769178139918,0.00510742,2936.7,2935.4,0.90894459]
[1769178140123,0.34493598,2936.6,2935.4,0.90894459]
[1769178140323,0.00510742,2936.7,2935.4,0.90894459]
[1769178140520,0.3449519,2936.6,2935.4,0.90894459]
[1769178140721,0.14694703,2936.7,2935.4,0.90894459]
[1769178141431,0.34497398,2936.6,2935.4,0.90894459]
[1769178141728,0.14694703,2936.7,2935.4,0.90894459]
[1769178141927,0.344974,2936.6,2935.4,0.90894459]
[1769178142129,0.14694703,2936.7,2935.4,0.90894459]
[1769178142322,0.34497405,2936.6,2935.4,0.90894459]
[1769178142523,0.14694703,2936.7,2935.4,0.90894459]
[1769178142718,0.34500257,2936.6,2935.4,0.90894459]
[1769178142926,0.14694703,2936.7,2935.4,0.90894459]
[1769178143128,0.34500258,2936.6,2935.4,0.90894459]
[1769178143330,0.14694703,2936.7,2935.4,0.90894459]
[1769178143526,0.34501603,2936.6,2935.4,0.90894459]
[1769178143727,0.14694703,2936.7,2935.4,0.90894459]
[1769178143927,0.34501601,2936.6,2935.4,0.90894459]
[1769178144128,0.14694703,2936.7,2935.4,0.90894459]
[1769178144332,0.34501606,2936.6,2935.4,0.90894459]
[1769178144534,0.14694703,2936.7,2935.4,0.90894459]
[1769178144731,0.34503022,2936.6,2935.4,0.90894459]
[1769178145031,0.14694703,2936.7,2935.4,0.90894459]
[1769178145239,0.34503011,2936.6,2935.4,0.90894459]
[1769178145532,0.14694703,2936.7,2935.4,0.90894459]
[1769178145834,0.00510742,2936.7,2935.7,0.90894459]
[1769178146132,0.00510742,2936.7,2936.1,0.90894459]
[1769178146330,0.00510742,2936.7,2935.5,1.21724327]
[1769178146533,0.14694703,2936.7,2935.2,0.90894459]
[1769178146733,0.14183961,2936.5,2935.1,0.13774868]
[1769178147326,0.14183961,2936.5,2935.0,3.58058]
[1769178148733,0.90894459,2936.0,2934.7,3.1926933]
[1769178148933,0.90894459,2936.0,2934.7,0.13774868]
[1769178149327,0.00510742,2936.7,2935.4,0.13774868]
[1769178149528,0.00510742,2936.7,2935.9,0.90894459]
[1769178157941,0.00510742,2936.7,2935.6,0.90894459]
[1769178158141,0.00510742,2936.7,2935.0,4.27630656]
[1769178158142,1.0482948,2936.5,2935.0,0.14219122]
[1769178158341,0.13935021,2936.4,2935.1,0.90894459]
[1769178158932,0.00510742,2936.7,2935.4,0.90894459]
[1769178159133,0.00510742,2936.7,2935.7,0.90894459]
[1769178161949,0.00510742,2936.7,2936.0,0.90894459]
[1769178162539,0.00510742,2936.7,2935.8,0.90894459]
[1769178162939,0.00510742,2936.7,2935.6,0.17055]
[1769178163241,0.00510742,2936.7,2935.6,0.31274122]
[1769178163741,0.00510742,2936.7,2935.7,6.3]
[1769178163941,0.00510742,2936.7,2935.7,6.44219122]
[1769178164748,0.00510742,2936.7,2935.7,6.61273122]
[1769178165044,0.13935021,2937.8,2936.1,0.14219122]
[1769178165347,1.29176809,2937.7,2936.1,0.31271122]
[1769178165542,0.3451908,2937.6,2936.1,0.31271122]
[1769178165844,0.13935021,2937.8,2936.1,0.31271122]
[1769178166047,0.3451212,2937.7,2936.1,0.31271122]
[1769178166345,0.13935021,2937.8,2936.1,0.31271122]
[1769178166346,0.3451212,2937.6,2936.1,0.31271122]
[1769178166644,0.13935021,2937.8,2936.1,0.31271122]
[1769178166838,0.34506405,2937.7,2936.2,0.14219122]
[1769178167039,0.13935021,2937.8,2936.2,0.14219122]
[1769178167241,6.498,2938.0,2936.5,0.14219122]
[1769178167446,0.34498529,2937.9,2936.5,0.14645418]
[1769178167648,6.63735021,2938.0,2936.5,0.14645418]
[1769178167839,0.34497573,2937.9,2936.5,0.14645418]
[1769178168040,6.63735021,2938.0,2936.5,0.14645418]
[1769178171250,2.44721384,2939.0,2936.5,0.14645418]
[1769178171251,0.13935021,2939.0,2936.5,0.14645418]
[1769178171442,0.13935021,2938.8,2937.6,0.17043]
[1769178171746,0.13935021,2939.2,2937.6,6.47043]
[1769178172146,0.13935021,2939.6,2937.9,0.00510742]
[1769178172647,0.13935021,2939.6,2937.9,0.14729864]
[1769178173246,0.13935021,2939.6,2937.9,0.31770864]
[1769178173444,0.13935021,2940.2,2938.2,0.31259122]
[1769178173646,0.13935021,2940.2,2938.4,0.17038]
[1769178173840,0.13935021,2940.2,2938.4,0.31257122]
[1769178174847,0.13935021,2940.2,2938.5,0.17038]
[1769178177454,0.13935021,2940.2,2938.1,3.5784]
[1769178178058,0.13935021,2940.2,2938.2,6.3]
[1769178178254,0.13935021,2940.2,2938.2,6.47039]
[1769178181256,0.13935021,2939.8,2937.9,0.00510742]
[1769178181557,0.13935021,2939.6,2937.9,0.00510742]
[1769178181752,0.30967021,2939.6,2937.9,0.00510742]
[1769178181957,0.13758212,2939.5,2937.9,0.00510742]
[1769178183646,0.13758212,2939.5,2938.2,0.17039]
[1769178183851,0.13758212,2940.0,2938.2,0.17039]
[1769178185461,0.13758212,2940.0,2938.3,0.17039]
[1769178189159,0.14980966,2939.8,2937.9,0.00510742]
[1769178190166,0.14980966,2939.8,2938.0,0.1704]
[1769178190762,0.14980966,2939.8,2938.0,0.31215249]
[1769178191266,0.14980966,2939.8,2938.0,0.14175249]
[1769178191566,0.14980966,2939.8,2938.3,0.17039]
[1769178191766,0.14980966,2939.8,2938.4,0.17038]
[1769178194065,0.14980966,2939.6,2938.0,0.14175249]
[1769178194261,0.14980966,2940.1,2938.1,0.14175249]
[1769178194664,0.14980966,2940.1,2938.3,0.17039]
[1769178196973,0.14980966,2940.1,2938.4,0.17038]
[1769178197969,0.14980966,2940.1,2938.6,0.17037]
[1769178198276,0.14980966,2940.1,2938.6,0.17314659]
[1769178198871,0.14980966,2940.1,2938.7,0.17037]
[1769178200078,0.14980966,2940.1,2938.8,6.3]
[1769178201374,0.14980966,2940.1,2938.8,6.47036]
[1769178204678,0.14980966,2940.5,2938.9,0.17035]
[1769178204876,1.2803672,2940.4,2938.9,0.17035]
[1769178205083,1.2803672,2940.3,2938.9,0.17035]
[1769178205277,0.14980966,2940.5,2938.9,0.17035]
[1769178205476,1.28022764,2940.4,2939.4,0.00510742]
[1769178205679,1.28022764,2940.3,2939.4,0.00510742]
[1769178205881,0.14980966,2940.5,2939.4,0.00510742]
[1769178206074,0.14980966,2940.3,2939.4,0.00510742]
[1769178206676,0.14980966,2940.1,2938.6,0.00277659]
[1769178206878,0.14980966,2939.9,2938.6,0.00277659]
[1769178207085,1.44926587,2940.0,2938.6,0.00277659]
[1769178207086,0.14980966,2939.7,2938.6,0.00277659]
[1769178207581,0.14980966,2939.5,2938.6,0.00277659]
[1769178210483,0.14980966,2939.3,2937.5,3.05494462]
[1769178210786,0.14980966,2938.7,2937.1,6.3]
[1769178210984,0.14980966,2938.5,2936.8,3.406]
[1769178211183,0.14980966,2938.3,2936.8,3.406]
[1769178211377,0.15262524,2938.3,2936.9,6.3]
[1769178211578,0.15491708,2938.2,2936.9,6.3]
[1769178212486,0.15491708,2938.2,2936.8,3.40854395]
[1769178216889,0.14125159,2938.1,2936.8,3.40854395]
[1769178217279,0.14125159,2937.8,2936.8,0.00254395]
[1769178217478,0.14125159,2937.7,2935.8,0.15179178]
[1769178217684,0.14125159,2937.6,2935.7,3.407]
[1769178217886,0.14125159,2937.6,2935.8,6.3]
[1769178218186,0.00510742,2938.2,2936.9,0.15179178]
[1769178218392,0.00510742,2938.2,2936.9,0.15440104]
[1769178223296,0.00510742,2938.2,2937.0,6.3]
[1769178224397,0.14635901,2938.2,2936.9,0.00260926]
[1769178228204,0.00510742,2938.2,2936.9,0.00260926]
[1769178230703,0.14635901,2938.2,2936.9,0.00260926]
[1769178231002,0.14125159,2938.0,2936.9,0.00260926]
[1769178234208,0.31166159,2938.0,2936.9,0.00260926]
[1769178234409,0.14125159,2937.9,2935.8,0.32232178]
[1769178234909,0.14125159,2937.9,2935.9,6.3]
[1769178235501,0.14125159,2937.9,2935.9,6.30316672]
[1769178236809,0.14125159,2937.7,2935.9,0.00316672]
[1769178238312,0.14125159,2937.5,2935.9,0.00316672]
[1769178239513,0.14125159,2937.3,2935.9,0.00316672]
[1769178240316,0.14125159,2937.1,2935.9,0.00316672]
[1769178248110,0.00510742,2938.2,2936.4,0.14511101]
[1769178248314,0.00510742,2938.2,2936.7,0.17048]
[1769178248315,0.14926122,2938.2,2936.7,0.17048]
[1769178248507,0.14926122,2938.2,2936.8,0.17048]
[1769178248710,0.00510742,2938.2,2937.0,0.17047]
[1769178253718,0.00510742,2938.2,2937.1,0.17046]
[1769178254113,0.00510742,2938.2,2937.2,6.3]
[1769178256126,0.14926122,2938.2,2937.2,6.3]
[1769178257826,0.14926122,2938.2,2937.1,0.17046]
[1769178258327,0.14926122,2938.2,2937.1,6.47046]
[1769178265835,0.00510742,2938.2,2937.1,6.47046]
[1769178268633,0.14926122,2938.2,2936.6,3.57849]
[1769178269041,0.14926122,2938.2,2936.7,6.3]
[1769178269840,0.14926122,2938.2,2936.7,6.47048]
[1769178270841,0.14926122,2938.2,2936.8,0.17047]
[1769178271241,0.14926122,2938.2,2936.9,0.17047]
[1769178276540,0.00510742,2938.2,2936.8,0.14737003]
[1769178276741,0.00510742,2938.2,2937.1,0.17046]
[1769178277536,0.00510742,2938.2,2937.2,0.17045]
[1769178277741,0.14174728,2939.0,2937.4,0.17044]
[1769178277935,1.28224731,2938.9,2937.4,0.17044]
[1769178278136,0.34439688,2938.8,2937.6,0.17043]
[1769178278449,0.14174728,2939.0,2937.6,0.17043]
[1769178278640,0.34323447,2938.9,2937.6,0.17043]
[1769178278845,0.0025848,2938.9,2937.7,0.31779003]
[1769178279046,0.0025848,2938.9,2938.0,0.00510742]
[1769178279242,0.0025848,2938.9,2938.0,0.00804007]
[1769178279448,0.14174728,2938.7,2938.0,0.00804007]
[1769178280538,0.14174728,2938.7,2937.3,3.05494462]
[1769178280741,0.00510742,2938.6,2937.2,3.22539462]
[1769178280943,0.1468547,2938.6,2937.2,3.22539462]
[1769178281643,0.1468547,2938.6,2937.2,3.22976877]
[1769178282946,0.1468547,2938.6,2937.2,3.05931877]
[1769178283144,0.14174728,2938.4,2937.2,0.00437415]
[1769178283441,0.14174728,2938.2,2937.2,0.00437415]
[1769178295258,0.1468547,2938.6,2937.2,0.00437415]
[1769178295459,0.34308075,2938.5,2937.3,0.90800654]
[1769178295758,0.34308075,2938.4,2937.3,0.90800654]
[1769178295960,0.1468547,2938.6,2937.3,0.90800654]
[1769178296260,0.14174728,2938.4,2937.3,0.90800654]
[1769178296949,0.14174728,2938.4,2937.2,0.00437415]
[1769178299155,0.14174728,2938.4,2937.2,6.30437415]
[1769178300155,0.14174728,2938.4,2937.2,6.47482415]
[1769178300458,0.0025848,2938.9,2937.8,0.90790586]
[1769178300661,0.0025848,2938.9,2937.8,4.13327048]
[1769178301052,0.0025848,2938.9,2937.8,1.07832586]
[1769178303252,0.0025848,2938.9,2937.9,0.17041]
[1769178306055,0.14011952,2939.6,2938.0,0.17041]
[1769178306257,0.14011952,2939.6,2938.0,0.30885084]
[1769178306451,0.14011952,2939.6,2938.1,0.1704]
[1769178306963,0.14011952,2939.6,2938.2,0.1704]
[1769178307258,0.14380026,2939.6,2938.2,0.1704]
[1769178310155,0.14380026,2939.6,2938.3,0.17039]
[1769178310551,0.14380026,2939.6,2938.5,0.17038]
[1769178310759,0.00368074,2939.6,2938.7,0.17037]
[1769178311465,0.00368074,2939.6,2938.8,0.17036]
[1769178311660,0.14011952,2940.4,2938.8,0.17036]
[1769178311864,0.14011952,2940.4,2938.6,6.3]
[1769178311865,0.14011952,2940.1,2938.2,0.1704]
[1769178312058,0.14011952,2939.9,2937.8,3.05494462]
[1769178312263,0.14011952,2939.6,2937.9,6.3]
[1769178312457,0.14011952,2939.5,2937.7,5.669]
[1769178312662,0.14011952,2939.5,2937.3,0.13844084]
[1769178312663,0.14011952,2939.2,2937.3,3.05494462]
[1769178312858,0.14011952,2938.9,2937.2,3.22976877]
[1769178313059,0.14011952,2938.9,2937.2,0.17482415]
[1769178313671,0.14011952,2938.9,2937.2,6.47482415]
[1769178313966,0.14011952,2938.9,2937.2,0.00437415]
[1769178315363,0.14011952,2938.7,2937.2,0.00437415]
[1769178318271,0.14011952,2938.5,2937.2,0.00437415]
[1769178321876,0.14011952,2938.5,2937.3,6.3]
[1769178322873,0.00510742,2939.0,2937.4,0.13844084]
[1769178323076,0.00510742,2939.0,2937.6,0.13844084]
[1769178323578,0.00510742,2939.0,2937.6,3.19338546]
[1769178324076,0.00510742,2939.0,2938.0,0.1704]
[1769178325269,0.00510742,2939.0,2937.6,0.13844084]
[1769178325574,0.14522694,2939.0,2937.5,0.17044]
[1769178331780,0.14522694,2939.0,2937.7,0.17042]
[1769178334687,0.15217455,2939.5,2938.0,1.07801668]
[1769178334878,0.15217455,2939.5,2938.1,0.00510742]
[1769178335380,0.15217455,2939.5,2938.1,0.17550742]
[1769178335581,0.15217455,2939.5,2938.2,0.17039]
[1769178335977,0.00182032,2939.5,2938.4,1.07798668]
[1769178336982,0.00182032,2939.5,2938.4,0.17038]
[1769178337282,0.00182032,2939.5,2938.5,6.47038]
[1769178341584,0.15035423,2938.9,2937.2,0.17482415]
[1769178341780,0.15035423,2938.9,2937.2,0.00437415]
[1769178346491,0.15035423,2938.9,2937.2,0.14521284]
[1769178348792,0.00510742,2939.3,2937.5,0.17044]
[1769178349092,0.00510742,2939.3,2937.6,0.14083869]
[1769178349389,0.00510742,2939.3,2937.6,3.19578331]
[1769178350289,0.00510742,2939.3,2937.7,0.14083869]
[1769178350483,0.00510742,2939.3,2937.9,3.19578331]
[1769178350682,0.00510742,2939.3,2938.0,0.14083869]
[1769178350885,0.00510742,2939.3,2938.1,3.05494462]
[1769178351086,0.00510742,2939.3,2938.0,0.14083869]
[1769178351087,0.00510742,2939.3,2938.2,3.05494462]
[1769178351489,0.00510742,2939.3,2938.9,0.14083869]
[1769178351688,0.15035423,2940.3,2938.9,0.14083869]
[1769178351893,0.34215632,2940.2,2938.9,0.14083869]
[1769178352094,0.15035423,2940.3,2938.9,0.14083869]
[1769178352595,0.15035423,2940.3,2938.9,3.19578331]
[1769178353093,0.15035423,2940.7,2939.3,0.00510742]
[1769178353294,0.34103278,2940.6,2939.3,0.00510742]
[1769178353589,0.15035423,2940.4,2939.3,0.00510742]
[1769178354384,0.15035423,2940.4,2939.3,0.00848145]
[1769178355589,0.15546165,2940.1,2938.5,0.14083869]
[1769178355988,0.15546165,2940.1,2938.6,3.05494462]
[1769178356687,0.15852193,2940.1,2938.6,3.05869673]
[1769178358195,0.15852193,2940.1,2938.6,0.00375211]
[1769178359094,0.32881193,2940.1,2938.6,0.00375211]
[1769178359295,0.15035423,2939.9,2938.6,0.00375211]
[1769178359492,0.51094919,2940.0,2937.8,0.17042]
[1769178359493,0.15035423,2939.7,2937.8,0.17042]
[1769178359799,0.15035423,2939.5,2937.8,0.17042]
[1769178360295,0.15035423,2939.5,2937.8,3.22536462]
[1769178360598,0.15035423,2940.0,2938.1,0.14083869]
[1769178360801,0.15035423,2940.0,2938.2,0.14083869]
[1769178360802,0.34063974,2939.9,2938.2,0.14083869]
[1769178361098,0.15035423,2940.0,2938.3,0.14083869]
[1769178362206,0.0081677,2940.1,2938.4,0.1444242]
[1769178362397,0.34064602,2940.0,2938.4,0.1444242]
[1769178362598,0.0081677,2940.1,2938.4,0.1444242]
[1769178363094,0.0081677,2940.1,2938.7,3.19936882]
[1769178363294,0.0081677,2940.1,2938.7,0.1444242]
[1769178363489,0.0081677,2940.1,2938.8,3.05494462]
[1769178363896,0.0081677,2940.1,2938.9,3.05494462]
[1769178364101,0.0081677,2940.1,2938.8,3.05494462]
[1769178364606,0.0081677,2940.1,2938.9,3.05494462]
[1769178364901,0.0081677,2940.1,2938.8,3.05494462]
[1769178365401,0.0081677,2940.1,2938.9,3.05494462]
[1769178365607,0.0081677,2940.1,2938.7,0.1444242]
[1769178366102,0.16778203,2940.1,2938.8,3.05494462]
[1769178367397,0.16778203,2940.1,2938.5,0.17038]
[1769178368396,0.16778203,2940.1,2938.6,0.17037]
[1769178368602,0.0081677,2940.1,2938.9,0.14705838]
[1769178369099,0.0081677,2940.1,2939.0,3.05494462]
[1769178369901,0.0081677,2940.1,2939.1,0.14705838]
[1769178370102,0.0081677,2940.1,2939.1,3.202003]
[1769178370302,0.0081677,2940.1,2939.5,3.05494462]
[1769178370804,0.0081677,2940.1,2939.7,3.05494462]
[1769178371106,0.0081677,2940.1,2939.4,3.05494462]
[1769178371591,0.0081677,2940.1,2939.5,3.05494462]
[1769178371789,0.0081677,2940.1,2939.4,3.05494462]
[1769178371994,0.0081677,2940.1,2939.3,3.05494462]
[1769178372396,0.0081677,2940.1,2939.4,3.05494462]
[1769178372604,0.0081677,2940.1,2939.3,3.05494462]
[1769178373504,0.0081677,2940.1,2939.5,3.05494462]
[1769178373705,0.0081677,2940.1,2939.3,3.05494462]
[1769178374098,0.0081677,2940.1,2939.0,0.31740838]
[1769178374099,0.0081677,2940.1,2939.5,3.05494462]
[1769178374305,0.0081677,2940.1,2939.6,3.05494462]
[1769178374605,0.0081677,2940.1,2939.3,3.05494462]
[1769178375102,0.0081677,2940.1,2939.5,3.05494462]
[1769178375307,0.0081677,2940.1,2939.0,0.31740838]
[1769178375308,0.0081677,2940.1,2939.3,3.05494462]
[1769178375700,0.0081677,2940.1,2939.5,3.05494462]
[1769178375908,0.0081677,2940.1,2939.3,3.05494462]
[1769178376409,0.0081677,2940.1,2939.4,3.05494462]
[1769178376606,0.0081677,2940.1,2939.2,3.05494462]
[1769178376909,0.0081677,2940.1,2939.1,3.05494462]
[1769178377213,0.0081677,2940.1,2938.7,3.05494462]
[1769178377394,0.16778203,2940.1,2938.7,3.05494462]
[1769178378510,0.34143389,2940.0,2938.7,3.05494462]
[1769178378710,0.16778203,2940.1,2938.7,3.05494462]
[1769178378911,0.16778203,2940.1,2938.6,0.14705838]
[1769178378912,0.34143414,2940.0,2938.6,0.14705838]
[1769178379102,0.34143414,2939.9,2938.6,3.202003]
[1769178379407,0.34161309,2939.8,2938.6,3.202003]
[1769178379603,0.16778203,2940.1,2938.6,3.202003]
[1769178379804,0.50124074,2940.0,2938.6,0.14705838]
[1769178380004,0.34162641,2939.9,2938.5,0.17038]
[1769178380412,0.34162641,2939.9,2938.2,3.18498526]
[1769178380413,0.67154074,2939.9,2938.2,3.18498526]
[1769178380710,0.0081677,2940.1,2937.9,4.44671656]
[1769178380711,0.15961433,2939.7,2938.0,3.03792688]
[1769178380910,0.15961433,2939.5,2937.9,0.17041]
[1769178381105,0.34162641,2939.4,2938.1,0.14705838]
[1769178381300,0.17031,2939.7,2938.1,0.14705838]
[1769178381508,0.34194101,2939.6,2938.3,0.14705838]
[1769178381808,0.34194101,2939.5,2938.3,0.14705838]
[1769178382008,0.34194101,2939.4,2938.3,3.202003]
[1769178382212,0.15961433,2939.9,2938.4,3.202003]
[1769178382506,0.15961433,2939.9,2938.4,0.14705838]
[1769178382507,1.23422006,2939.8,2938.4,0.14705838]
[1769178382709,2.0704577,2940.1,2938.0,3.20833688]
[1769178382710,0.341871,2939.7,2938.5,0.14705838]
[1769178382908,0.341871,2939.6,2938.6,0.14705838]
[1769178383112,0.1784577,2940.1,2938.6,0.14705838]
[1769178383313,0.34183997,2940.0,2938.7,3.202003]
[1769178383512,0.34183997,2939.9,2938.8,3.05494462]
[1769178383709,0.34183997,2939.8,2938.8,3.05494462]
[1769178383912,0.34183997,2939.7,2938.8,3.05494462]
[1769178384219,0.1784577,2940.1,2938.8,3.05494462]
[1769178384515,0.34184888,2940.0,2938.8,3.05494462]
[1769178384730,0.34184888,2939.9,2939.1,3.05494462]
[1769178384913,0.34184888,2939.8,2939.1,3.05494462]
[1769178385118,0.0081677,2940.1,2939.2,3.05494462]
[1769178385309,0.34182424,2940.0,2939.1,3.05494462]
[1769178385510,0.34182424,2939.9,2939.1,3.05494462]
[1769178385707,0.0081677,2940.1,2939.2,3.05494462]
[1769178385920,0.3407406,2940.0,2939.1,3.05494462]
[1769178386115,0.3407406,2939.9,2939.1,3.05494462]
[1769178386323,0.0081677,2940.1,2939.2,3.05494462]
[1769178386324,0.3407406,2939.8,2939.2,3.05494462]
[1769178386517,0.0081677,2940.1,2939.1,3.05494462]
[1769178386723,0.34074003,2940.0,2939.0,3.05494462]
[1769178386917,0.34074003,2939.9,2939.0,3.05494462]
[1769178387221,0.34074002,2939.8,2939.1,3.05494462]
[1769178387421,0.0081677,2940.1,2939.0,3.05494462]
[1769178387720,0.34073454,2940.0,2939.0,3.05494462]
[1769178387910,0.34073454,2939.9,2939.1,3.05494462]
[1769178388111,0.0081677,2940.1,2939.0,3.05494462]
[1769178388319,0.34073447,2940.0,2939.0,3.05494462]
[1769178388521,0.0081677,2940.1,2938.8,0.14705838]
[1769178388522,0.34073447,2939.9,2939.1,3.05494462]
[1769178388711,0.0081677,2940.1,2939.0,3.05494462]
[1769178388911,0.34075731,2940.0,2939.0,3.05494462]
[1769178389116,0.34075731,2939.9,2939.1,3.05494462]
[1769178389318,0.0081677,2940.1,2939.0,3.05494462]
[1769178389517,0.34077146,2940.0,2939.0,3.05494462]
[1769178389724,0.34077146,2939.9,2939.1,3.05494462]
[1769178389913,0.34077146,2939.9,2938.8,0.14705838]
[1769178389914,0.0081677,2940.1,2939.0,3.05494462]
[1769178390116,1.56303553,2940.0,2938.3,0.14705838]
[1769178390321,1.2331212,2939.9,2938.3,0.14705838]
[1769178390522,0.34077148,2939.8,2938.3,3.202003]
[1769178390723,0.34077148,2939.7,2938.4,0.14705838]
[1769178390924,0.1703,2940.0,2938.9,0.14705838]
[1769178391220,0.34075439,2939.9,2938.9,0.14705838]
[1769178391424,0.34075439,2939.8,2939.1,3.05494462]
[1769178391620,0.34075439,2939.7,2939.1,3.05494462]
[1769178391820,0.1703,2940.0,2939.2,3.05494462]
[1769178392020,0.34076575,2939.9,2939.1,3.05494462]
[1769178392324,0.34076575,2939.8,2939.1,3.05494462]
[1769178392622,0.34076575,2939.7,2939.2,3.05494462]
[1769178392822,0.34076575,2939.7,2938.9,0.14705838]
[1769178392823,0.1703,2940.0,2939.1,3.05494462]
[1769178393026,0.34077736,2939.9,2939.1,3.05494462]
[1769178393226,0.34077736,2939.8,2939.3,3.05494462]
[1769178393421,0.34077736,2939.7,2939.1,3.05494462]
[1769178393623,0.1703,2940.0,2939.1,3.05494462]
[1769178393823,0.34076981,2939.9,2939.2,3.05494462]
[1769178394125,0.0081677,2940.1,2939.1,3.05494462]
[1769178394328,0.3407651,2940.0,2939.1,3.05494462]
[1769178394524,0.3407651,2939.9,2939.2,3.05494462]
[1769178394725,0.0081677,2940.1,2939.1,3.05494462]
[1769178395026,0.34074596,2940.0,2939.1,3.05494462]
[1769178395326,0.34074596,2939.9,2939.2,3.05494462]
[1769178395526,0.0081677,2940.1,2939.1,3.05494462]
[1769178395729,0.34074453,2940.0,2939.1,3.05494462]
[1769178395925,0.34074453,2939.9,2939.2,3.05494462]
[1769178396221,0.0081677,2940.1,2939.1,3.20382855]
[1769178396414,0.34074171,2940.0,2939.2,3.05494462]
[1769178396619,0.0081677,2940.1,2939.1,0.14888393]
[1769178396923,0.34074142,2940.0,2939.1,0.14888393]
[1769178397133,0.0081677,2940.1,2939.5,3.05494462]
[1769178397421,0.0081677,2940.1,2939.4,3.05494462]
[1769178397626,0.0081677,2940.1,2939.8,3.05494462]
[1769178397818,0.15511661,2940.4,2939.5,3.05494462]
[1769178398018,0.15511661,2940.4,2939.5,0.00510742]
[1769178398220,0.15511661,2940.4,2939.7,3.05494462]
[1769178398628,0.15511661,2940.4,2939.8,3.05494462]
[1769178398829,0.15918247,2940.4,2939.7,3.05494462]
[1769178399331,0.15918247,2940.4,2939.8,3.05494462]
[1769178399627,0.15918247,2940.4,2939.8,3.04983721]
[1769178400024,0.15918247,2940.4,2939.9,3.04983721]
[1769178400226,0.15918247,2940.4,2939.9,0.00356022]
[1769178400427,0.15918247,2940.4,2939.9,3.05339743]
[1769178401826,0.15918247,2940.4,2939.9,0.00356022]
[1769178402028,0.15918247,2940.4,2939.9,3.05339743]
[1769178402524,0.15918247,2940.4,2940.0,3.04983721]
[1769178404426,0.1505394,2940.4,2940.0,3.04983721]
[1769178404830,0.00406586,2940.4,2940.0,3.04983721]